bitfinex-derivatives/quotes_SOLF0:USTF0_20251002
["timestamp","ask_amount","ask_price","bid_price","bid_amount"]
[1759442603848,7.57,233.12,233.02,7.36]
[1759442605550,11.4279,233.12,233.02,7.36]
[1759442610253,7.57,233.12,233.02,7.36]
[1759442611050,7.57,233.12,233.02,11.2194]
[1759442611552,7.57,233.12,233.03,7.73]
[1759442611958,7.57,233.12,233.04,7.73]
[1759442614151,7.57,233.12,233.05,3.859]
[1759442614756,7.59,233.16,233.06,3.8587]
[1759442615053,7.59,233.16,233.07,7.73]
[1759442615257,7.59,233.16,233.08,3.8586]
[1759442616052,7.59,233.16,233.07,7.73]
[1759442616251,2.95086351,233.15,233.07,7.73]
[1759442616448,7.59,233.14,233.07,7.73]
[1759442621165,7.59,233.17,233.08,7.73]
[1759442621971,7.59,233.17,233.11,3.8581]
[1759442622172,7.59,233.17,233.08,7.73]
[1759442622574,7.59,233.17,233.09,7.73]
[1759442626569,3.8577,233.14,233.09,7.73]
[1759442626766,3.8577,233.14,233.08,7.73]
[1759442626767,7.59,233.13,233.08,7.73]
[1759442627071,3.8579,233.13,232.98,27.84]
[1759442627273,7.59,233.12,233.0,7.73]
[1759442627579,10.54087874,233.2,233.09,7.73]
[1759442627872,7.59,233.18,233.09,7.73]
[1759442628272,11.4471,233.18,233.04,7.73]
[1759442628470,7.59,233.14,232.99,7.73]
[1759442628677,7.59,233.11,232.99,7.73]
[1759442629168,10.54013021,233.1,233.02,2.15271122]
[1759442629379,7.59,233.14,233.03,7.73]
[1759442629569,7.59,233.14,232.98,62.20061122]
[1759442629570,7.59,233.14,233.06,7.73]
[1759442630266,14.91306945,233.21,233.09,2.15271122]
[1759442630267,2.95039172,233.16,233.09,2.15271122]
[1759442630466,7.59,233.18,233.1,7.73]
[1759442630675,7.59,233.15,233.05,7.73]
[1759442631064,7.59,233.12,233.01,9.88271122]
[1759442631269,7.59,233.12,233.05,2.15271122]
[1759442631471,7.59,233.17,233.06,7.73]
[1759442631676,2.95074654,233.16,233.06,7.73]
[1759442631869,2.95060761,233.15,233.06,7.73]
[1759442632071,10.54060761,233.14,233.05,2.15271122]
[1759442632268,7.59,233.14,233.06,7.73]
[1759442633272,7.59,233.14,233.01,3.8596]
[1759442633273,7.59,233.14,233.02,7.73]
[1759442633472,59.9974,233.18,233.02,40.18271122]
[1759442633670,2.95095064,233.17,233.02,9.88271122]
[1759442633869,7.59,233.1,233.02,9.88271122]
[1759442634169,7.59,233.14,233.03,7.73]
[1759442634375,7.59,233.14,233.06,2.15271122]
[1759442634571,7.59,233.14,233.07,7.73]
[1759442634871,10.54166185,233.17,233.07,7.73]
[1759442635075,7.59,233.17,233.09,7.73]
[1759442635471,7.59,233.17,233.0,7.12086311]
[1759442635673,7.59,233.15,233.02,7.73]
[1759442635874,2.951846,233.14,233.04,7.73]
[1759442636177,7.59,233.15,233.04,7.73]
[1759442636377,2.95263246,233.14,233.04,7.73]
[1759442636577,7.59,233.15,233.04,7.73]
[1759442636879,2.95263355,233.14,233.04,11.5892]
[1759442637070,7.59,233.15,233.04,11.5892]
[1759442637377,7.59,233.15,233.04,7.73]
[1759442638175,2.95052893,233.14,233.04,7.73]
[1759442638367,7.59,233.15,233.04,7.73]
[1759442638571,2.95028359,233.14,233.04,7.73]
[1759442638771,7.59,233.15,233.04,7.73]
[1759442638973,7.59,233.13,233.04,7.73]
[1759442639171,2.15271122,233.17,232.99,3.8599]
[1759442639172,7.59,233.11,232.99,7.73]
[1759442639575,7.59,233.11,233.0,3.8599]
[1759442639779,7.59,233.11,233.01,7.73]
[1759442640272,7.59,233.19,233.03,7.73]
[1759442640471,7.59,233.17,233.03,7.73]
[1759442640678,7.59,233.15,233.03,7.73]
[1759442640882,7.59,233.13,233.03,7.73]
[1759442641067,25.99338439,233.2,232.99,7.73]
[1759442641068,7.59,233.11,232.99,7.73]
[1759442641268,7.59,233.09,232.99,7.73]
[1759442641882,7.59,233.09,233.01,7.45]
[1759442642475,7.59,233.09,232.97,11.3103]
[1759442642679,7.59,233.09,232.97,13.46301122]
[1759442643175,6.97,233.09,232.97,13.46301122]
[1759442643375,3.8583,233.1,232.97,9.60271122]
[1759442643376,2.95041649,233.08,232.97,9.60271122]
[1759442643571,60.0111,233.13,232.97,9.60271122]
[1759442643775,6.97,233.09,232.97,7.45]
[1759442643976,2.95019473,233.08,232.97,9.60271122]
[1759442644177,6.97,233.06,232.97,7.45]
[1759442644384,6.97,233.04,232.94,312.18]
[1759442645677,6.97,233.04,232.95,7.45]
[1759442646077,2.95095175,233.07,232.95,7.45]
[1759442646276,6.97,233.08,232.98,7.45]
[1759442649177,6.97,233.08,233.0,2.15271122]
[1759442649380,6.97,233.17,233.01,7.45]
[1759442649681,6.97,233.15,233.01,7.45]
[1759442649879,6.97,233.13,233.01,7.45]
[1759442650181,2.95046657,233.12,233.01,7.45]
[1759442650378,2.95046657,233.11,233.01,7.45]
[1759442650573,2.95046657,233.1,233.01,7.45]
[1759442650782,6.97,233.13,233.01,7.45]
[1759442650982,6.97,233.13,233.05,7.45]
[1759442652085,6.97,233.2,233.05,7.45]
[1759442652280,6.97,233.18,233.05,7.45]
[1759442652480,6.97,233.16,233.05,7.45]
[1759442652675,6.80908181,233.15,233.05,7.45]
[1759442652881,2.95148181,233.14,233.05,7.45]
[1759442653080,3.8576,233.15,233.05,7.45]
[1759442653278,6.97,233.16,233.05,7.45]
[1759442653279,2.9511735,233.14,233.05,7.45]
[1759442653478,6.97,233.16,233.08,9.60271122]
[1759442654576,6.97,233.16,233.08,7.45]
[1759442655684,10.8274,233.16,233.08,7.45]
[1759442656385,6.97,233.2,233.12,1.37668177]
[1759442656589,2.9506956,233.19,233.12,1.37668177]
[1759442656887,2.9506956,233.18,233.12,1.37668177]
[1759442657088,9.9206956,233.17,233.12,8.82668177]
[1759442657286,6.97,233.17,233.12,8.82668177]
[1759442659091,1.37668177,233.22,233.12,8.82668177]
[1759442659285,6.97,233.2,233.12,7.45]
[1759442659486,6.97,233.18,233.09,1.37668177]
[1759442659690,2.95112875,233.17,233.09,8.82668177]
[1759442659986,6.97,233.18,233.09,8.82668177]
[1759442660189,10.8269,233.18,233.09,8.82668177]
[1759442660693,10.8269,233.18,233.09,7.45]
[1759442660886,10.8269,233.18,233.11,1.37668177]
[1759442662286,6.97,233.18,233.11,1.37668177]
[1759442662489,2.95068103,233.2,233.14,1.37668177]
[1759442662687,3.8566,233.21,233.14,1.37668177]
[1759442663092,2.95078261,233.2,233.14,1.37668177]
[1759442663395,6.97,233.22,233.18,7.45]
[1759442664690,14.29916588,233.29,233.17,8.87668177]
[1759442664691,2.9498041,233.24,233.17,8.87668177]
[1759442664891,7.11,233.26,233.2,1.37668177]
[1759442665084,1.37668177,233.29,233.2,1.37668177]
[1759442665085,2.94901588,233.25,233.2,1.37668177]
[1759442665281,2.94863372,233.27,233.21,7.5]
[1759442665483,7.11,233.25,233.21,8.87668177]
[1759442665888,7.11,233.25,233.21,1.37668177]
[1759442666089,7.11,233.3,233.21,1.37668177]
[1759442666288,7.11,233.28,233.21,1.37668177]
[1759442666493,2.94753975,233.27,233.21,1.37668177]
[1759442666691,2.94753975,233.26,233.22,7.5]
[1759442666895,7.11,233.26,233.22,7.5]
[1759442667196,10.05753975,233.26,233.22,7.5]
[1759442667387,7.11,233.26,233.22,7.5]
[1759442667990,7.11,233.25,233.22,1.37668177]
[1759442669788,7.11,233.25,233.22,8.87668177]
[1759442670193,7.11,233.25,233.22,7.5]
[1759442670387,3.8558,233.25,233.2,1.37668177]
[1759442670784,7.11,233.24,233.2,1.37668177]
[1759442670991,3.8558,233.25,233.2,1.37668177]
[1759442671292,7.11,233.24,233.2,1.37668177]
[1759442672989,7.46,233.24,233.18,1.37668177]
[1759442673495,72.99294623,233.32,233.18,1.37668177]
[1759442673496,7.46,233.42,233.27,7.34]
[1759442673795,7.46,233.42,233.34,1.37668177]
[1759442673994,7.46,233.4,233.34,1.37668177]
[1759442675386,7.46,233.38,233.32,1.37668177]
[1759442675583,7.46,233.38,233.15,7.7148]
[1759442675584,67.4078,233.38,233.15,13.01511635]
[1759442675784,7.46,233.37,233.28,1.37668177]
[1759442676589,11.3139,233.37,233.28,1.37668177]
[1759442676795,7.46,233.37,233.28,1.37668177]
[1759442677492,7.46,233.37,233.31,1.37668177]
[1759442679695,7.46,233.37,233.27,7.34]
[1759442679896,7.46,233.37,233.28,1.37668177]
[1759442680698,11.3138,233.37,233.28,1.37668177]
[1759442680998,8.83668177,233.37,233.28,1.37668177]
[1759442681198,7.46,233.37,233.28,1.37668177]
[1759442682596,7.46,233.37,233.31,1.37668177]
[1759442685898,7.46,233.37,233.28,7.34]
[1759442686093,7.46,233.38,233.32,1.37668177]
[1759442687093,7.46,233.38,233.31,7.34]
[1759442687094,7.46,233.38,233.35,1.37668177]
[1759442688297,3.8531,233.42,233.35,1.37668177]
[1759442688298,7.46,233.41,233.35,1.37668177]
[1759442689195,7.46,233.41,233.35,7.34]
[1759442689499,7.46,233.47,233.37,1.37668177]
[1759442689992,3.853,233.42,233.37,1.37668177]
[1759442690400,7.46,233.41,233.37,1.37668177]
[1759442691399,7.46,233.41,233.37,8.71668177]
[1759442691598,3.853,233.42,233.37,8.71668177]
[1759442691798,11.3125,233.45,233.38,7.34]
[1759442692999,3.8528,233.44,233.38,7.34]
[1759442694003,3.8528,233.44,233.37,1.37668177]
[1759442694304,7.46,233.41,233.37,1.37668177]
[1759442695800,11.313,233.42,233.34,7.34]
[1759442696001,3.853,233.42,233.37,1.37668177]
[1759442696302,7.46,233.41,233.37,1.37668177]
[1759442696502,7.46,233.4,233.37,1.37668177]
[1759442701512,7.65,233.49,233.38,7.24]
[1759442701703,7.65,233.49,233.43,1.37668177]
[1759442701903,7.65,233.49,233.46,1.37668177]
[1759442702103,7.65,233.5,233.46,1.37668177]
[1759442702310,106.3,233.51,233.46,1.37668177]
[1759442702511,7.65,233.5,233.46,1.37668177]
[1759442702710,110.1515,233.51,233.46,1.37668177]
[1759442702909,110.1515,233.51,233.41,7.24]
[1759442702910,7.65,233.5,233.44,1.37668177]
[1759442703208,7.65,233.5,233.43,1.37668177]
[1759442703410,10.56419016,233.5,233.41,1.37668177]
[1759442704607,10.56419016,233.5,233.37,7.24]
[1759442704608,7.65,233.49,233.44,1.37668177]
[1759442704912,311.86,233.6,233.31,59.9627]
[1759442704913,7.65,233.54,233.48,1.37668177]
[1759442705115,7.65,233.54,233.51,1.37668177]
[1759442705310,7.65,233.6,233.51,1.37668177]
[1759442705807,7.65,233.6,233.44,16.18]
[1759442705808,7.65,233.6,233.57,1.37668177]
[1759442706913,2.91248179,233.65,233.58,7.24]
[1759442707110,67.5103,233.72,233.58,7.24]
[1759442707111,7.65,233.69,233.58,7.24]
[1759442707410,7.65,233.69,233.6,1.37668177]
[1759442707811,3.8491,233.66,233.6,1.37668177]
[1759442708109,7.65,233.69,233.63,1.37668177]
[1759442708714,7.65,233.69,233.61,7.24]
[1759442708914,7.65,233.73,233.65,1.37668177]
[1759442709111,7.65,233.71,233.62,1.37668177]
[1759442709311,61.23618177,233.72,233.61,1.37668177]
[1759442709511,7.65,233.71,233.61,1.37668177]
[1759442709714,7.65,233.68,233.61,1.37668177]
[1759442710718,3.8488,233.67,233.61,1.37668177]
[1759442711917,7.65,233.68,233.61,1.37668177]
[1759442712518,11.4987,233.68,233.61,1.37668177]
[1759442713219,3.8487,233.68,233.64,1.37668177]
[1759442713411,7.65,233.67,233.64,1.37668177]
[1759442713816,3.8487,233.68,233.64,1.37668177]
[1759442714022,7.65,233.67,233.64,1.37668177]
[1759442714224,3.8487,233.68,233.64,1.37668177]
[1759442714523,7.65,233.67,233.64,1.37668177]
[1759442714722,3.8487,233.68,233.64,1.37668177]
[1759442715224,7.65,233.67,233.64,1.37668177]
[1759442715432,11.4983,233.71,233.64,1.37668177]
[1759442715721,11.4983,233.71,233.67,1.37668177]
[1759442715923,7.65,233.7,233.67,1.37668177]
[1759442716420,14.00076851,233.77,233.67,1.37668177]
[1759442716421,7.65,233.77,233.68,7.24]
[1759442716623,59.8229,233.87,233.72,7.24]
[1759442716624,7.65,233.82,233.72,7.24]
[1759442716823,7.65,233.82,233.75,1.37668177]
[1759442717013,2.89575208,233.86,233.81,1.37668177]
[1759442717221,7.65,233.9,233.81,1.37668177]
[1759442717525,67.4636,233.9,233.81,1.37668177]
[1759442717823,7.65,233.88,233.81,1.37668177]
[1759442718124,7.65,233.85,233.81,1.37668177]
[1759442718322,7.65,233.85,233.78,9.37803043]
[1759442718516,7.65,233.91,233.78,9.37803043]
[1759442718825,7.65,233.91,233.79,37.16]
[1759442719625,3.8458,233.86,233.78,9.37803043]
[1759442720122,7.65,233.85,233.74,7.24]
[1759442720722,3.8467,233.81,233.74,7.24]
[1759442720924,11.4967,233.81,233.74,7.24]
[1759442721428,3.8469,233.79,233.74,7.24]
[1759442721624,11.4969,233.79,233.74,7.24]
[1759442722323,7.65,233.79,233.74,7.24]
[1759442722524,3.8465,233.82,233.73,7.24]
[1759442723428,3.8467,233.8,233.73,7.24]
[1759442723623,7.65,233.84,233.73,7.24]
[1759442724627,3.8463,233.83,233.73,7.24]
[1759442726331,3.8463,233.83,233.73,9.37803043]
[1759442726729,3.8465,233.81,233.73,9.37803043]
[1759442726930,67.4791,233.84,233.73,9.37803043]
[1759442727631,3.8469,233.79,233.73,9.37803043]
[1759442730135,7.37,233.85,233.63,311.44]
[1759442730337,7.37,233.87,233.7,2.13803043]
[1759442730633,7.37,233.85,233.7,2.13803043]
[1759442730837,7.37,233.8,233.67,2.13803043]
[1759442731228,7.37,233.8,233.68,7.65]
[1759442731422,7.37,233.8,233.71,2.13803043]
[1759442732026,7.37,233.8,233.68,26.51]
[1759442732433,7.37,233.8,233.68,7.65]
[1759442733531,11.2167,233.8,233.68,7.65]
[1759442733837,7.37,233.8,233.68,7.65]
[1759442734431,7.37,233.8,233.71,2.13803043]
[1759442734835,7.37,233.8,233.71,9.35803043]
[1759442735129,7.37,233.8,233.38,7.12086311]
[1759442735130,7.27,233.82,233.66,9.35803043]
[1759442735534,2.13803043,233.83,233.66,9.35803043]
[1759442735741,3.8467,233.8,233.66,9.35803043]
[1759442736040,2.13803043,233.83,233.66,9.35803043]
[1759442736041,61.96953043,233.83,233.66,9.35803043]
[1759442736233,7.27,233.82,233.66,7.22]
[1759442736741,61.96953043,233.83,233.66,7.22]
[1759442736742,7.27,233.77,233.66,7.22]
[1759442738936,7.27,233.77,233.66,9.35803043]
[1759442741142,7.27,233.77,233.66,7.22]
[1759442741938,3.8474,233.76,233.66,7.22]
[1759442742135,3.8474,233.76,233.65,2.13803043]
[1759442742136,7.27,233.75,233.65,2.13803043]
[1759442743232,7.27,233.75,233.65,9.35803043]
[1759442744440,7.27,233.79,233.66,7.22]
[1759442744844,7.27,233.79,233.69,2.13803043]
[1759442745046,7.27,233.79,233.7,7.22]
[1759442749341,2.91983309,233.78,233.7,7.22]
[1759442749542,7.27,233.79,233.7,7.22]
[1759442749738,2.92002503,233.78,233.7,7.22]
[1759442749944,2.92002503,233.77,233.7,7.22]
[1759442750148,7.27,233.79,233.7,7.22]
[1759442750441,2.92016223,233.78,233.7,7.22]
[1759442750642,2.92016223,233.77,233.7,7.22]
[1759442750843,2.92016223,233.76,233.7,7.22]
[1759442751147,10.19287549,233.75,233.7,7.22]
[1759442751347,2.13803043,233.81,233.7,7.22]
[1759442751348,7.27,233.8,233.7,7.22]
[1759442751650,7.27,233.78,233.7,7.22]
[1759442751850,2.92457655,233.77,233.7,7.22]
[1759442752148,2.92457655,233.76,233.7,7.22]
[1759442752351,2.92457655,233.75,233.7,7.22]
[1759442752543,7.27,233.78,233.7,7.22]
[1759442752848,2.9254157,233.77,233.7,7.22]
[1759442753050,2.9254157,233.76,233.7,7.22]
[1759442753250,2.9254157,233.75,233.69,2.13803043]
[1759442753451,7.27,233.78,233.7,7.22]
[1759442753750,2.92595675,233.77,233.7,7.22]
[1759442753947,2.92595675,233.76,233.7,7.22]
[1759442754149,3.8468,233.8,233.7,7.22]
[1759442754349,2.92579252,233.79,233.7,7.22]
[1759442754648,2.92647779,233.78,233.7,7.22]
[1759442754848,2.92647779,233.77,233.7,7.22]
[1759442755048,3.8468,233.8,233.7,7.22]
[1759442755244,2.92631354,233.79,233.7,7.22]
[1759442755443,2.92631354,233.78,233.7,7.22]
[1759442755648,3.8468,233.8,233.7,7.22]
[1759442755847,2.92722734,233.79,233.7,7.22]
[1759442756047,2.92722734,233.78,233.7,7.22]
[1759442756351,3.8468,233.8,233.7,7.22]
[1759442756552,2.92817955,233.79,233.7,7.22]
[1759442756749,2.92817955,233.78,233.7,7.22]
[1759442756951,3.8468,233.8,233.7,7.22]
[1759442757152,2.92817955,233.79,233.7,7.22]
[1759442757447,2.92817955,233.78,233.7,7.22]
[1759442757752,7.27,233.81,233.7,7.22]
[1759442757945,2.92911641,233.8,233.7,7.22]
[1759442758142,2.92911641,233.79,233.7,7.22]
[1759442758343,2.92911641,233.78,233.7,7.22]
[1759442758553,7.27,233.81,233.7,7.22]
[1759442758752,2.93018013,233.8,233.7,7.22]
[1759442758947,2.93018013,233.79,233.73,2.13803043]
[1759442759153,7.27,233.81,233.74,7.22]
[1759442759352,2.93006925,233.8,233.74,7.22]
[1759442759650,2.93006925,233.79,233.7,7.22]
[1759442759950,7.27,233.74,233.62,7.22]
[1759442760148,2.93006925,233.73,233.62,9.35803043]
[1759442760343,2.93006925,233.72,233.62,9.35803043]
[1759442760543,2.93006925,233.71,233.62,7.22]
[1759442760747,7.27,233.74,233.62,7.22]
[1759442761049,2.93355915,233.73,233.62,7.22]
[1759442761249,2.93355915,233.72,233.62,7.22]
[1759442761450,3.8487,233.69,233.62,7.22]
[1759442761645,59.8568,233.73,233.62,9.35803043]
[1759442761851,3.849,233.67,233.62,7.22]
[1759442762054,11.279,233.67,233.62,7.22]
[1759442763853,11.279,233.67,233.6,7.65]
[1759442764050,3.8492,233.65,233.59,2.13803043]
[1759442764257,7.43,233.67,233.59,7.65]
[1759442764758,11.2797,233.63,233.59,7.65]
[1759442765160,7.43,233.66,233.5,7.65]
[1759442765457,59.882,233.63,233.53,7.65]
[1759442765752,59.882,233.63,233.49,7.65]
[1759442765753,3.8506,233.57,233.49,7.65]
[1759442765961,11.2806,233.57,233.49,7.65]
[1759442766351,3.8509,233.55,233.49,7.65]
[1759442766551,7.43,233.57,233.47,318.93]
[1759442766949,3.8507,233.56,233.47,318.93]
[1759442767251,7.43,233.62,233.51,7.65]
[1759442767458,7.43,233.62,233.54,7.65]
[1759442767645,7.43,233.66,233.59,2.13803043]
[1759442767849,7.43,233.7,233.59,2.13803043]
[1759442768049,10.35645558,233.7,233.59,2.13803043]
[1759442768254,7.43,233.7,233.59,2.13803043]
[1759442769058,7.43,233.7,233.6,7.65]
[1759442774747,2.9265606,233.73,233.6,7.65]
[1759442774952,12.60410728,233.76,233.55,58.02]
[1759442774953,10.3565606,233.75,233.59,7.65]
[1759442775152,7.43,233.75,233.59,7.65]
[1759442775551,7.43,233.75,233.63,3.8495]
[1759442775850,7.43,233.75,233.64,7.65]
[1759442779358,7.43,233.73,233.64,7.65]
[1759442783460,7.43,233.74,233.59,7.65]
[1759442783668,7.43,233.72,233.59,7.65]
[1759442783855,7.43,233.7,233.59,7.65]
[1759442784857,2.92797026,233.69,233.53,7.67]
[1759442785060,11.4987,233.68,233.53,7.67]
[1759442785267,7.65,233.66,233.53,7.67]
[1759442785465,10.57797026,233.66,233.53,7.67]
[1759442785666,7.65,233.66,233.53,7.67]
[1759442786068,14.42673744,233.66,233.53,7.67]
[1759442786267,2.92791895,233.65,233.53,7.67]
[1759442786457,7.65,233.64,233.53,7.67]
[1759442786656,7.65,233.64,233.48,7.67]
[1759442787759,14.42576473,233.64,233.48,7.67]
[1759442787965,11.4995,233.64,233.48,7.67]
[1759442788167,40.2795,233.64,233.48,7.67]
[1759442788464,7.65,233.61,233.48,7.67]
[1759442790067,7.65,233.59,233.48,7.67]
[1759442790265,9.02212727,233.59,233.48,7.67]
[1759442790771,3.8504,233.58,233.47,68.29212727]
[1759442790967,7.65,233.55,233.47,1.37212727]
[1759442791269,7.65,233.52,233.44,1.37212727]
[1759442792467,7.65,233.52,233.47,1.37212727]
[1759442793370,7.64,233.55,233.47,1.37212727]
[1759442793574,7.64,233.52,233.44,1.37212727]
[1759442795267,7.64,233.52,233.43,7.24]
[1759442795567,7.64,233.49,233.4,1.37212727]
[1759442796765,7.64,233.49,233.39,85.71212727]
[1759442796971,7.64,233.49,233.32,311.42]
[1759442796972,7.64,233.46,233.38,1.37212727]
[1759442798381,7.64,233.46,233.35,7.24]
[1759442798580,7.64,233.46,233.36,1.37212727]
[1759442800578,80.03212727,233.47,233.36,1.37212727]
[1759442800579,7.64,233.43,233.36,1.37212727]
[1759442800776,7.64,233.43,233.33,1.37212727]
[1759442802382,7.64,233.43,233.34,1.37212727]
[1759442805887,7.64,233.43,233.31,7.24]
[1759442806188,11.4928,233.43,233.35,1.37212727]
[1759442807485,7.64,233.4,233.33,1.37212727]
[1759442810385,3.8528,233.43,233.37,7.24]
[1759442810592,7.64,233.44,233.39,1.37212727]
[1759442810789,7.64,233.44,233.39,8.61212727]
[1759442811086,59.9011,233.56,233.42,8.61212727]
[1759442811087,7.64,233.52,233.42,8.61212727]
[1759442811393,7.64,233.52,233.46,1.37212727]
[1759442812083,59.8911,233.6,233.34,59.9546]
[1759442812084,7.64,233.57,233.49,1.37212727]
[1759442813486,7.64,233.57,233.5,1.37212727]
[1759442813692,7.64,233.54,233.5,1.37212727]
[1759442814892,3.8505,233.57,233.5,8.61212727]
[1759442815098,7.64,233.57,233.52,1.37212727]
[1759442815298,13.00544459,233.6,233.4,59.9388]
[1759442815299,13.00544459,233.6,233.54,1.37212727]
[1759442815500,7.64,233.61,233.54,1.37212727]
[1759442815898,9.01212727,233.61,233.51,1.37212727]
[1759442816198,7.64,233.58,233.49,1.37212727]
[1759442816393,59.8908,233.6,233.49,1.37212727]
[1759442816394,3.8511,233.54,233.49,1.37212727]
[1759442816601,7.64,233.53,233.49,1.37212727]
[1759442818499,1.37212727,233.59,233.49,1.37212727]
[1759442818698,7.64,233.53,233.49,1.37212727]
[1759442820098,7.64,233.53,233.49,8.61212727]
[1759442820297,3.851,233.54,233.49,8.61212727]
[1759442820498,11.491,233.54,233.49,8.61212727]
[1759442820901,7.64,233.53,233.49,8.61212727]
[1759442821601,11.4706,233.57,233.49,1.37212727]
[1759442822001,7.62,233.57,233.49,1.37212727]
[1759442823503,7.62,233.55,233.47,1.37212727]
[1759442824303,7.62,233.55,233.44,7.36]
[1759442824304,7.62,233.53,233.44,7.36]
[1759442824501,7.62,233.53,233.44,8.73212727]
[1759442824705,8.99212727,233.53,233.44,8.73212727]
[1759442825106,3.8518,233.5,233.44,8.73212727]
[1759442826407,11.4713,233.53,233.46,1.37212727]
[1759442826705,7.62,233.53,233.46,1.37212727]
[1759442826910,3.8518,233.5,233.44,8.73212727]
[1759442827615,8.99212727,233.51,233.42,1.37212727]
[1759442827914,7.62,233.48,233.4,8.73212727]
[1759442828308,3.8525,233.46,233.4,8.73212727]
[1759442830908,7.62,233.46,233.38,1.37212727]
[1759442831414,3.8531,233.41,233.38,1.37212727]
[1759442831608,3.8531,233.41,233.36,1.37212727]
[1759442831805,11.4731,233.41,233.36,8.73212727]
[1759442832312,11.4731,233.41,233.3,106.02]
[1759442832313,8.99212727,233.49,233.39,1.37212727]
[1759442832507,2.92834192,233.48,233.4,7.36]
[1759442832705,2.92834192,233.47,233.41,1.37212727]
[1759442832905,8.99212727,233.49,233.41,8.73212727]
[1759442833110,2.9281779,233.48,233.41,8.73212727]
[1759442833313,2.9281779,233.47,233.41,8.73212727]
[1759442833510,7.62,233.49,233.45,7.36]
[1759442833915,1.37212727,233.53,233.44,1.37212727]
[1759442834111,7.62,233.48,233.44,1.37212727]
[1759442835516,7.62,233.48,233.44,8.73212727]
[1759442835717,3.8522,233.47,233.44,1.37212727]
[1759442835916,3.8522,233.47,233.39,7.36]
[1759442835917,3.8522,233.47,233.41,1.37212727]
[1759442837816,7.62,233.49,233.41,1.37212727]
[1759442837817,11.4718,233.49,233.41,1.37212727]
[1759442838110,2.93177791,233.48,233.42,7.36]
[1759442838316,11.4718,233.49,233.43,1.37212727]
[1759442838522,3.8522,233.47,233.42,7.36]
[1759442838709,7.62,233.49,233.42,8.73212727]
[1759442838911,2.93205551,233.48,233.42,8.73212727]
[1759442839111,7.62,233.49,233.44,1.37212727]
[1759442839306,7.62,233.49,233.44,8.73212727]
[1759442840316,7.62,233.49,233.44,7.36]
[1759442842517,7.62,233.54,233.44,7.36]
[1759442842720,7.62,233.52,233.44,7.36]
[1759442842920,2.93234481,233.51,233.44,7.36]
[1759442843116,2.93234481,233.5,233.44,7.36]
[1759442843316,7.62,233.52,233.44,7.36]
[1759442843511,2.93253395,233.51,233.44,7.36]
[1759442843716,6.78433395,233.5,233.44,7.36]
[1759442844030,3.8518,233.5,233.44,7.36]
[1759442848524,2.93459408,233.49,233.44,7.36]
[1759442848729,3.8518,233.5,233.44,7.36]
[1759442849324,2.93499535,233.49,233.44,7.36]
[1759442849525,3.8518,233.5,233.44,7.36]
[1759442849727,2.93499535,233.49,233.44,7.36]
[1759442849925,3.8518,233.5,233.44,7.36]
[1759442850121,2.93499537,233.49,233.44,7.36]
[1759442850329,7.34,233.49,233.44,7.36]
[1759442850924,7.34,233.49,233.41,7.61]